Cogmind - Beta 11 @@@ ROGUE MODE // 2022.03.23 @ 18:58:59 Player: Ciaphas Result: Destroyed by as-17311 with Assembled Heavy Rifle Performance ------------- Evolutions (0) 0 Regions Visited (4) 800 Robots Destroyed (33) 165 Value Destroyed (495) 495 Prototype IDs (0) 0 Alien Tech Used (0) 0 Bonus (60) 60 TOTAL SCORE: 1520 Bonus ------- Follower Combat Kills 60 Cogmind --------- Core Integrity 0/250 Matter 300/300 Energy 149/150 System Corruption 10% Temperature Warm (136) Movement Core (300) Ox5 Location -9/Mines Parts ------- > --- POWER (1) -------- Light Angular Momentum Engine > --- PROPULSION (2) --- (None) > --- UTILITY (2) ------ Small Storage Unit > --- WEAPON (2) ------- Katana > --- INVENTORY (8) ---- Light Ion Engine Aluminum Leg Medium Storage Unit Large Matter Pod (150) Structural Scanner Transport Network Coupler Targeting Computer Hardened Light Armor Plating Peak State ------------ > --- POWER ------------ Light Angular Momentum Engine > --- PROPULSION ------- Aluminum Leg Carbon-fiber Leg > --- UTILITY ---------- Improved Heat Sink Small Storage Unit > --- WEAPON ----------- Particle Gun Beamcaster > --- INVENTORY -------- Light Ion Engine Aluminum Leg Medium Storage Unit Medium Matter Pod Structural Scanner Transport Network Coupler Targeting Computer Hardened Light Armor Plating [Rating: 20] Favorites ----------- Power Light Ion Engine Engine Light Ion Engine Propulsion Aluminum Leg Leg Aluminum Leg Utility Small Storage Unit Device Improved Heat Sink Storage Small Storage Unit Weapon Particle Gun Energy Gun Particle Gun Special Weapon Mining Laser Slashing Weapon Katana Build | -11 -10 -10 -10 -9 ------- Run | Scr Mat Min Exi Min Slots Evolved . | . . . . . Power . | . . . . . Propulsion . | . . . . . Utility . | . . . . . Weapon . | . . . . . Parts Attached 26 | 1 17 7 . 1 Power 3 | . 2 1 . . Engine 3 | . 2 1 . . Core . | . . . . . Reactor . | . . . . . Propulsion 6 | . 2 4 . . Treads . | . . . . . Leg 6 | . 2 4 . . Wheel . | . . . . . Hover . | . . . . . Flight . | . . . . . Utility 10 | 1 9 . . . Device 8 | 1 7 . . . Storage 2 | . 2 . . . Processor . | . . . . . Hackware . | . . . . . Protection . | . . . . . Artifact . | . . . . . Weapon 7 | . 4 2 . 1 Energy Gun 5 | . 4 1 . . Energy Cannon . | . . . . . Ballistic Gun . | . . . . . Ballistic Cannon . | . . . . . Launcher . | . . . . . Special Weapon 1 | . . 1 . . Impact Weapon . | . . . . . Slashing Weapon 1 | . . . . 1 Piercing Weapon . | . . . . . Special Melee Weapon . | . . . . . Unidentified Prototypes . | . . . . . Corrupted Parts 1 | . . . . 1 System Corruption 10 | . . . . 10 Parts Lost 7 | . . 2 . 5 Power . | . . . . . Propulsion 2 | . . . . 2 Utility 1 | . . . . 1 Weapon 4 | . . 2 . 2 Highest Loss Streak 5 | . . 1 . 5 To Critical Strikes . | . . . . . Average Slot Usage (%) 99 | . 99 99 100 97 Engine 14 | . 14 14 14 14 Leg 28 | . 28 28 28 28 Device 13 | . 13 14 14 12 Storage 14 | . 14 14 14 14 Energy Gun 26 | . 28 20 28 26 Special Weapon 1 | . . 6 . . Naked Turns . | . . . . . Heaviest Build 23 | 13 17 23 23 23 Greatest Support 25 | 20 20 25 25 25 Greatest Overweight (x) 5 | . . . . 5 Average Overweight (x) . | . . . . . Largest Inventory Capacity 10 | 8 10 8 8 8 Average Capacity 8 | 8 8 8 8 8 Most Carried 8 | 6 8 8 8 8 Average Carried 7 | 4 7 8 7 8 Final Capacity 8 | 8 8 8 8 8 Final Carried 8 | 4 8 8 8 8 Class Distribution -------------------- 53% | Scavenger-Mutant 46% | Mutant Dominant Class ---------------- Mutant | -10/Materials Scavenger-Mutant | -10/Mines Scavenger-Mutant | -10/Exiles Scavenger-Mutant | -9/Mines Resources | -11 -10 -10 -10 -9 ----------- Run | Scr Mat Min Exi Min Matter Collected 540 | 200 275 64 1 . Remotely . | . . . . . Salvage Created 963 | 172 454 286 . 51 Parts 47 | 9 28 10 . . Haulers Intercepted 2 | . 2 . . . Recyclers Shooed . | . . . . . Parts Field Recycled . | . . . . . Retrieved Matter . | . . . . . Parts Self-Destructed . | . . . . . Prevented . | . . . . . Kills | -11 -10 -10 -10 -9 ------- Run | Scr Mat Min Exi Min Combat Hostiles Destroyed 21 | . 10 8 . 3 Melee 2 | . . . . 2 Guns 19 | . 10 8 . 1 Classes Destroyed 8 | 2 5 . . 1 Worker 2 | . 2 . . . Tunneler 5 | 5 . . . . Hauler 2 | . 2 . . . Recycler 3 | 1 1 1 . . Watcher 2 | . 2 . . . Swarmer 12 | . 6 6 . . Grunt 7 | . 4 2 . 1 Assembled 2 | . . . . 2 Best Kill Streak 5 | 5 5 3 . 3 Combat Bots Only 3 | . 3 3 . 3 Max Kills in Single Turn 2 | 1 1 2 . 1 Gunslinging 1 | . . 1 . . Exploded . | . . . . . Melee 1 | . . . . 1 Uniques/NPCs Destroyed . | . . . . . Combat | -11 -10 -10 -10 -9 -------- Run | Scr Mat Min Exi Min Damage Taken 1124 | . 357 255 . 512 Core 260 | . 67 27 . 166 Absorbed by Shields . | . . . . . Core Remaining (%) 100 | 100 . . . . Volleys Fired 109 | 16 62 23 . 8 Largest 2 | 2 2 2 . 2 Hottest 140 | 100 130 130 . 140 Shots Fired 205 | 32 122 35 . 16 Gun 205 | 32 122 35 . 16 Cannon . | . . . . . Launcher . | . . . . . Special . | . . . . . Kinetic . | . . . . . Thermal 205 | 32 122 35 . 16 Explosive . | . . . . . Electromagnetic . | . . . . . Robot Hit Streak 18 | 5 16 18 . 3 Robot Miss Streak 5 | 4 4 5 . 2 Penetration Max . | . . . . . Secondary Targets 3 | . . 2 . 1 Max Gunslinging Chain 1 | . . 1 . 1 Shots Hit Robots 123 | 14 73 25 . 11 Core Hits 44 | 7 21 13 . 3 Critical Kills . | . . . . . Critical Parts Destroyed . | . . . . . Critical Strikes 4 | 2 1 1 . . Burn 4 | 2 1 1 . . Melee Attacks 4 | . . . . 4 Impact . | . . . . . Slashing 4 | . . . . 4 Piercing . | . . . . . Sneak Attacks . | . . . . . Combat Hostiles . | . . . . . Follow-up Attacks . | . . . . . Damage Inflicted 2040 | 178 1168 430 . 264 Guns 1922 | 178 1164 430 . 150 Cannons . | . . . . . Explosions . | . . . . . Melee 114 | . . . . 114 Ramming 4 | . 4 . . . Kinetic . | . . . . . Thermal 1922 | 178 1164 430 . 150 Explosive . | . . . . . Electromagnetic . | . . . . . Impact . | . . . . . Slashing 114 | . . . . 114 Piercing . | . . . . . Highest Corruption 10 | . . . . 10 Average Corruption 10 | . . . . 10 Corruption Purged . | . . . . . Corruption Blocked . | . . . . . Effects 1 | . . . . 1 Misdirections 1 | . . . . 1 Overload Shots . | . . . . . Overflow Damage 11 | . . . . 11 Projectiles . | . . . . . Explosions . | . . . . . Melee 11 | . . . . 11 Knockbacks . | . . . . . Impact . | . . . . . Kinetic . | . . . . . Secondary . | . . . . . Self-Inflicted Damage . | . . . . . Shots . | . . . . . Rammed . | . . . . . Targets Rammed 1 | . 1 . . . Kicked 1 | . 1 . . . Crushed . | . . . . . Highest Temperature 346 | 156 199 210 . 346 Average Temperature 80 | 65 64 83 . 210 Received Heat Transfer 240 | . 72 60 . 108 Siege Activations . | . . . . . Robots Corrupted . | . . . . . Combat Hostiles . | . . . . . Parts Fried . | . . . . . Impact Corruptions . | . . . . . Robots Melted . | . . . . . Combat Hostiles . | . . . . . Parts Melted 13 | 3 4 5 . 1 Heat Transferred 4884 | 666 2812 1110 . 296 Parts Sabotaged . | . . . . . Parts Stolen . | . . . . . Parts Stripped . | . . . . . Power Chain Reactions . | . . . . . Missiles Intercepted . | . . . . . Alert | -11 -10 -10 -10 -9 ------- Run | Scr Mat Min Exi Min Peak Influence 306 | 30 306 183 . 60 Initial 19 | . 19 15 . . Average 112 | 15 141 99 . 22 Maximum Alert Level 1 | . 1 . . . Low Security (%) 79 | 100 63 100 . 100 Level 1 20 | . 36 . . . Level 2 . | . . . . . Level 3 . | . . . . . Level 4 . | . . . . . Level 5 . | . . . . . High Security . | . . . . . Max Security . | . . . . . Squads Dispatched 1 | . 1 . . . Investigation 1 | . 1 . . . Extermination . | . . . . . Reinforcement . | . . . . . Assault . | . . . . . Garrison . | . . . . . Intercept . | . . . . . Searches Triggered . | . . . . . Construction Impeded . | . . . . . Haulers Reinforced . | . . . . . Active Scanning Responses . | . . . . . Cargo Convoy Interrupts . | . . . . . Stealth | -11 -10 -10 -10 -9 --------- Run | Scr Mat Min Exi Min Distress Signals 2 | . 2 . . . Communications Jammed . | . . . . . Distress Signals . | . . . . . Times Spotted 44 | . 20 10 . 14 Peak Tracking Total 10 | . 6 3 . 10 Tactical Retreats 5 | . 4 . . 1 Traps | -11 -10 -10 -10 -9 ------- Run | Scr Mat Min Exi Min Traps Triggered 1 | . 1 . . . Indirectly . | . . . . . Trap Hack Attempts . | . . . . . Triggered . | . . . . . Disarmed . | . . . . . Reprogrammed . | . . . . . Reused . | . . . . . Traps Extracted . | . . . . . Installed . | . . . . . Triggered 1 | . . . . 1 Machines | -11 -10 -10 -10 -9 ---------- Run | Scr Mat Min Exi Min Machines Disabled 2 | . . . . 2 Max in Single Turn 2 | . . . . 2 Machines Sabotaged . | . . . . . Garrisons Compromised . | . . . . . Overloaded Fab Kills . | . . . . . Hacking | -11 -10 -10 -10 -9 --------- Run | Scr Mat Min Exi Min Machines Accessed 9 | . 5 . 4 . Terminals 5 | . 5 . . . Fabricators . | . . . . . Repair Stations . | . . . . . Recycling Units . | . . . . . Scanalyzers . | . . . . . Garrison Access . | . . . . . Total Hacks 23 | . 19 . 4 . Successful 15 | . 11 . 4 . Failed 8 | . 8 . . . Catastrophic . | . . . . . Database Lockouts . | . . . . . Manual 14 | . 14 . . . Terminals 19 | . 19 . . . Fabricators . | . . . . . Repair Stations . | . . . . . Recycling Units . | . . . . . Scanalyzers . | . . . . . Garrison Access . | . . . . . Terminal Hacks 8 | . 4 . 4 . Record 4 | . . . 4 . Branch Access Points 1 | . 1 . . . Alert Level 1 | . 1 . . . Unreport Threat 1 | . 1 . . . Investigation Status 1 | . 1 . . . Fabricator Hacks . | . . . . . Repair Station Hacks . | . . . . . Recycling Unit Hacks . | . . . . . Scanalyzer . | . . . . . Garrison Access Hacks . | . . . . . Unauthorized Hacks 7 | . 7 . . . Terminals 7 | . 7 . . . Track 2 | . 2 . . . Assimilate 1 | . 1 . . . Botnet 2 | . 2 . . . Operators 2 | . 2 . . . Fabricators . | . . . . . Repair Stations . | . . . . . Recycling Units . | . . . . . Scanalyzers . | . . . . . Garrison Access . | . . . . . Data Cores Recovered . | . . . . . Used . | . . . . . Hacking Detections 5 | . 5 . . . Full Trace Events . | . . . . . Feedback Events . | . . . . . Feedback Blocked . | . . . . . Robot Schematics Acquired . | . . . . . Robots Built . | . . . . . Authchips . | . . . . . Time . | . . . . . Total Robot Build Rating . | . . . . . Part Schematics Acquired . | . . . . . Parts Built . | . . . . . Authchips . | . . . . . Time . | . . . . . Total Part Build Rating . | . . . . . Parts Repaired . | . . . . . Time . | . . . . . Parts Recycled . | . . . . . Recycled Matter . | . . . . . Retrieved Matter . | . . . . . Retrieved Components . | . . . . . Parts Scanalyzed . | . . . . . Part Schematics Acquired . | . . . . . Parts Damaged . | . . . . . Bothacking | -11 -10 -10 -10 -9 ------------ Run | Scr Mat Min Exi Min Used RIF Installer . | . . . . . Robots Hacked . | . . . . . Non-combat . | . . . . . Combat . | . . . . . Robot Hacks Applied . | . . . . . Relay Couplers Released . | . . . . . Fabnet Peak Effective % . | . . . . . Robots Rewired . | . . . . . Allies Hacked . | . . . . . Hacks Repelled . | . . . . . Allies | -11 -10 -10 -10 -9 -------- Run | Scr Mat Min Exi Min Total Allies 1 | . . 1 . . Largest Group 1 | . . 1 . . Highest-Rated Group 31 | . . 31 . . Highest-Rated Ally 31 | . . 31 . . Total Orders . | . . . . . Ally Attacks 12 | . . 12 . . Total Damage 166 | . . 166 . . Kills 2 | . . 2 . . Allies Corrupted . | . . . . . Allies Melted . | . . . . . Intel | -11 -10 -10 -10 -9 ------- Run | Scr Mat Min Exi Min Robot Analysis Total . | . . . . . Derelict Logs Recovered 1 | . . 1 . . Drone Launches . | . . . . . Drone Recoveries . | . . . . . Exploration | -11 -10 -10 -10 -9 ------------- Run | Scr Mat Min Exi Min Turns Passed 2028 | 125 880 479 472 72 Spaces Moved 1303 | 60 499 321 393 30 Core 1 | . . . . 1 Treads . | . . . . . Legs 1302 | 60 499 321 393 29 Wheels . | . . . . . Hover . | . . . . . Flight . | . . . . . Fastest Speed 120 | 120 120 120 120 120 Average Speed 120 | 120 120 120 120 126 Slowest Speed 300 | 120 120 120 120 300 Overloaded Moves . | . . . . . Propulsion Burnouts . | . . . . . Robots Hopped . | . . . . . Cave-ins Triggered . | . . . . . Exploration Rate (%) 48 | 3 65 72 89 15 Regions Visited 4 Branch Regions 3 Pre-discovered Areas . | . . . . . Known Exits Taken 1 | . 1 . . . Unknown Exits Taken 3 | 1 . 1 1 . Scrap Searched 1 | . . 1 . . Spaces Dug . | . . . . . Terrain Destroyed . | . . . . . Melee . | . . . . . Projectile . | . . . . . AOE . | . . . . . Terrain Rammed . | . . . . . Walls Destroyed . | . . . . . Machines Disabled . | . . . . . Actions | -11 -10 -10 -10 -9 --------- Run | Scr Mat Min Exi Min Total 1558 | 81 658 381 394 44 Wait 89 | 3 59 26 . 1 Move 1299 | 59 498 320 392 30 Hop . | . . . . . Pick Up 8 | . 6 1 1 . Fast Attach 9 | 1 5 2 . 1 Attach 1 | . 1 . . . Detach 4 | . 4 . . . Swap 16 | . 11 5 . . Drop 18 | 2 11 4 1 . Fire 109 | 16 62 23 . 8 Melee 4 | . . . . 4 Ram . | . . . . . Kick 1 | . 1 . . . Crush . | . . . . . Escape Stasis . | . . . . . Rewire . | . . . . . Trap . | . . . . . Miscellaneous . | . . . . . Route ------- -11/Scrapyard -10/Materials (discovered 2 exits: [*Mat] / *Min) -10/Mines (discovered 3 exits: [*Mat x2] / *Exi) -10/Exiles -9/Mines History --------- Turn | Location | Event 1 | -11/Scrapyard | Discovered new exit (range 3) 126 | -11/Scrapyard | Entered Materials 274 | -10/Materials | Discovered new exit (range 5) 301 | -10/Materials | Build established: Mutant 609 | -10/Materials | Discovered new exit (range 8) 806 | -10/Materials | Identified exit to Mines 1006 | -10/Materials | Entered Mines 1057 | -10/Mines | Build established: Scavenger-Mutant 1063 | -10/Mines | Discovered new exit (range 6) 1219 | -10/Mines | Learned Materials security intel 1225 | -10/Mines | Received a Mining Laser from a helpful Derelict 1320 | -10/Mines | Discovered new exit (range 7) 1481 | -10/Mines | Deemed a non-threat by the Exiles lab entrance 1481 | -10/Mines | Discovered new exit (range 5) 1485 | -10/Mines | Entered Exiles 1485 | -10/Exiles | Found Exiles lab abandoned 1945 | -10/Exiles | Discovered new exit (range 12) 1957 | -10/Exiles | Entered Mines 1958 | -9/Mines | Assembled infested the area 1983 | -9/Mines | Core integrity fell below 50% 2017 | -9/Mines | System corruption reached 10% 2019 | -9/Mines | Core integrity fell below 20% 2029 | -9/Mines | Destroyed by as-17311 with Assembled Heavy Rifle Last Messages --------------- 01982_ as-40494 destroyed. 01982_ Dirty Bomb Trap short circuited. 01982_ An explosion rips through the floor. 01990_ Seismic Survey Station disabled. 01990_ Core Extractor disabled. 02005_ Ion Engine melted. 02005_ G-34 Mercenary destroyed. 02005_ Switching to secondary target: as-70128. 02008_ Destroyed Asb. F-torch. 02014_ Beamcaster destroyed. 02016_ Acquired Corrupted Katana. 02016_ Integrated Corrupted Katana (+10). [Achievement: System Compromised] 02017_ Imp. Heat Sink destroyed. 02019_ Destroyed Asb. F-torch. 02020_ Particle Gun destroyed. 02021_ Carbon-fiber Leg destroyed. 02022_ Aluminum Leg destroyed. 02024_ as-47320 destroyed. 02026_ as-60567 destroyed. Map ----- +----------------------------------------------------+ | ??????????????????????????????????????? | | ??????????????????????????????????????? | | ??????????????????????????????????????? | | ??????????????????????????????????????? | | ??????????????????????????????????????? | | ??????????????????????????????????????? | | ??????????????????????????????????????? | | ??????????????????????????????????????? | | ??????????????????????????????????????? | | ??????????????????????????????????????? | | ?????????????????????????####???#?????? | | ?????????????????????????# ??? ?????? | | ?????????????????????????# "?? """???? | | ?????????????????????????# """ """ ??? | | ?????????????????????????# """ """ ??? | | ?????????????????????????# ?? | | ?????????????????????????# "" """ #? | | ????????????? ?????????# "" """ #? | | ??????????? ?????????# " "" #? | | ????????? ????????# % #? | | ????????? ???????## ??? | | ???????? ?????##;;# ;#??????? | | ???????? ???### ;% ;##?????? | | ???????? ???#; %= ;#?????? | | ?????????? ??#; % #?????? | | ???????????# ?##; @ #?????? | | ????????????# ## ; ; #?????? | | ????????????# ##; ;#?????? | | ???????????## ; ##?????? | | ???????????# a;;;;; ##??????? | | ??????????# ##### #???????? | | ?????????# aa ##??? #???????? | | ????????# #####???# ???????? | | ?????? ????????? #??????? | | ?????? ### ?????????# #??????? | | ??????? #????##??????????## ##??????? | | ??????????????????????????# ###???????? | | ??????????????????????????# ??????????? | | ??????????????????????????# ??????????? | | ??????????????????????????# ??????????? | | ??????????????????????????# ??????????? | | ??????????????????????????# ??????????? | | ??????????????????????????? ??????????? | | ??????????????????????????? ??????????? | | ??????????????????????????????????????? | | ??????????????????????????????????????? | | ??????????????????????????????????????? | | ??????????????????????????????????????? | | ??????????????????????????????????????? | | ??????????????????????????????????????? | +----------------------------------------------------+ Best States ------------- Heat Dissipation 39 Energy Generation 18 Energy Capacity 250 Matter Stores 300 Matter Capacity 300 Sight Range 16 Terrain Scan Range 16 Terrain Scan Density 10 Evasion (%) 55 Item Schematics ----------------- None Robot Schematics ------------------ None Fabricated ------------ Nothing Alien Tech Used ----------------- None Achievements -------------- System Compromised Challenges ------------ None Game ------ Seed LauncherBiocellRedistributor Manual? 0 Play Time 00:25:20 Cumulative 12.1 hours Start 2022.03.23 @ 18:35:27 End 2022.03.23 @ 18:58:59 Sessions 1 Manual Loads 0 Difficulty Rogue Special Mode None Game No. 15 Rogue 8 Adventurer 7 Explorer 0 Win Type - Total 0 Types 0/0/0/0/0/0/0/0/0 Lore% 22 Gallery% 18 Achievement% 20 Wizard Run 0 Options --------- ASCII 1 Keyboard 0 Movement Numpad Keybinds 0 Fullscreen 1 Font 24/Terminus Map View 50x50 Tactical HUD 1 Map Filters NONE Filters NONE Steam 1 RUN: e6044e84-2fc3-4780-a504-cd48276ef0fe